Workbook

Sheet EPC CPC RER Calc
A1: Interim NZEB Specification Tool | W1: Fuel | AB1: Yes
A2: VERSION 4 | W2: Electricity | X2: 2.08 | Y2: 0.409 | AB2: No
A3: Publication Date: Q4 2017 | W3: Mains Gas | X3: 1.1 | Y3: 0.203
A4: Note: Electrical Primary Energy Factor updated to 2.08 and CO2 emissions 0.409 kg/kWh | W4: LPG | X4: 1.1 | Y4: 0.232
A5: 1. General information | W5: Oil | X5: 1.1 | Y5: 0.272
A6: Public Body: | W6: House coal/ Anthracite | X6: 1.1 | Y6: 0.361
A7: Building Address: | W7: Dual Fuel | X7: 1.1 | Y7: 0.289
A8: 2. Assessor Details | W8: Smokeless Fuel | X8: 1.2 | Y8: 0.392
A9: Assessor Name: | W9: Biomass | X9: 1.1 | Y9: 0.025
A10: Assessor Number: | W10: Biogas | X10: 1.1 | Y10: 0.025
A11: 3. Reference Building Data | W11: Waste Heat | X11: 1.05 | Y11: 0.018
B12: Actual Energy Use: | D12: Guidance Note: | E12: Fuel: | F12: Primary Energy: | G12: CO2 Emissions:
A13: Heating Energy | B13: 0 | C13: kWh/m2/yr | D13: Values are taken from the actual energy use for the manually created Reference Building | E13: Mains Gas | F13: =B13*J13 -> 0 | G13: =B13*K13 -> 0 | J13: =VLOOKUP(E13,$W$2:$Y$9,2,) -> 1.1 | K13: =VLOOKUP(E13,$W$2:$Y$9,3,) -> 0.203
A14: Cooling Energy | B14: 0 | C14: kWh/m2/yr | E14: Electricity | F14: =B14*J14 -> 0 | G14: =B14*K14 -> 0 | J14: =VLOOKUP(E14,$W$2:$Y$9,2,) -> 2.08 | K14: =VLOOKUP(E14,$W$2:$Y$9,3,) -> 0.409
A15: Auxiliary Energy | B15: 0 | C15: kWh/m2/yr | E15: Electricity | F15: 0 | G15: 0 | J15: =VLOOKUP(E15,$W$2:$Y$9,2,) -> 2.08 | K15: =VLOOKUP(E15,$W$2:$Y$9,3,) -> 0.409
A16: Lighting Energy | B16: 0 | C16: kWh/m2/yr | E16: Electricity | F16: 0 | G16: 0 | J16: =VLOOKUP(E16,$W$2:$Y$9,2,) -> 2.08 | K16: =VLOOKUP(E16,$W$2:$Y$9,3,) -> 0.409
A17: Hot Water Energy | B17: 0 | C17: kWh/m2/yr | E17: Mains Gas | F17: 0 | G17: 0 | J17: =VLOOKUP(E17,$W$2:$Y$9,2,) -> 1.1 | K17: =VLOOKUP(E17,$W$2:$Y$9,3,) -> 0.203
D18: Reference Building without Renewable Contribution | F18: =SUM(F13:F17) -> 0 | G18: =SUM(G13:G17) -> 0
A19: Renewable Energy Ratio | B19: =20% -> 0.2
A20: Epren Primary Renewable Energy required to meet RER | B20: =F18*B19 -> 0 | C20: kWh/m2/yr
A21: Area of Building | B21: 0 | C21: m2
A22: Estimated apeture area of photovoltaic (based on south facing panels at 30 degree angle with no overshading) | B22: =(B20/X2)*B21/(1076*15%*75%) -> 0 | C22: m2
A24: Reference Building Primary Energy Use | B24: =F18-B20 -> 0 | C24: kWh/m2/yr
A25: Reference Building Carbon Emissions | B25: =G18-((B20*Y2)/X2) -> 0 | C25: kgCO2/m2/yr
A27: 4. Actual Building Data
B28: Actual Energy Use: | D28: Guidance Note: | E28: Fuel: | F28: Primary Energy: | G28: CO2 Emissions:
A29: Heating Energy | B29: 0 | C29: kWh/m2/yr | D29: Values are taken from the actual energy use for the Actual Building | E29: Mains Gas | F29: =B29*J29 -> 0 | G29: =B29*K29 -> 0 | J29: =VLOOKUP(E29,$W$2:$Y$11,2,) -> 1.1 | K29: =VLOOKUP(E29,$W$2:$Y$11,3,) -> 0.203
A30: Cooling Energy | B30: 0 | C30: kWh/m2/yr | E30: Electricity | F30: =B30*J30 -> 0 | G30: =B30*K30 -> 0 | J30: 2.08 | K30: 0.409
A31: Auxiliary Energy | B31: 0 | C31: kWh/m2/yr | E31: Electricity | F31: 0 | G31: 0 | J31: 2.08 | K31: 0.409
A32: Lighting Energy | B32: 0 | C32: kWh/m2/yr | E32: Electricity | F32: 0 | G32: 0 | J32: 2.08 | K32: 0.409
A33: Hot Water Energy | B33: 0 | C33: kWh/m2/yr | E33: Mains Gas | F33: 0 | G33: 0 | J33: 1.1 | K33: 0.203
A34: Alternate Fuel | B34: 0 | C34: kWh/m2/yr | E34: Electricity | F34: =B34*J34 -> 0 | G34: =B34*K34 -> 0 | J34: 2.08 | K34: 0.409
F35: =SUM(F29:F34) -> 0 | G35: =SUM(G29:G34) -> 0
B36: Installed Renewable Energy
A37: Photovoltaic | B37: Yes
A38: Wind Energy | B38: Yes
A39: Solar Panel | B39: Yes
A40: Biomass/ Biogas | B40: Yes
A41: Combined Heat and Power | B41: Yes
A42: Heat Pump Technology | B42: Yes
A44: Photovoltaic
B45: Energy Contribution taken from XXX_sim file | F45: Primary Energy Factor | G45: CO2 Emissions
A46: Photovoltaic | B46: 0 | C46: kWh/m2/yr | D46: Photovoltaic Used on Site | F46: =X2 -> 2.08 | G46: =Y2 -> 0.409
A47: % of Photovoltaic used on site | B47: 1 | D47: Photovoltaic Exported Off Site | F47: =X2 -> 2.08 | G47: =Y2 -> 0.409
A49: Primary Energy from Photovoltaic | B49: =B46*B47*F46+B46*(1-B47)*F47 -> 0 | C49: kWh/m2/yr
A50: Carbon Emissions from Photovoltaic | B50: =B46*B47*G46+B46*(1-B47)*G47 -> 0 | C50: kgCO2/m2/yr
A52: Wind Energy
B53: Energy Contribution taken from XXX_sim file | F53: Primary Energy Factor | G53: CO2 Emissions
A54: Wind Energy | B54: 0 | C54: kWh/m2/yr | D54: Wind Energy Used on Site | F54: =X2 -> 2.08 | G54: =Y2 -> 0.409
A55: % of Wind Energy used on site | B55: 1 | D55: Wind Energy Exported Off Site | F55: =X2 -> 2.08 | G55: =Y2 -> 0.409
A57: Primary Energy from Photovoltaic | B57: =B54*B55*F54+B54*(1-B55)*F55 -> 0 | C57: kWh/m2/yr
A58: Carbon Emissions from Photovoltaic | B58: =B54*B55*G54+B54*(1-B55)*G55 -> 0 | C58: kgCO2/m2/yr
A60: Solar Panel
B61: Energy Contribution taken from XXX_sim file | F61: Primary Energy Factor | G61: CO2 Emissions
A62: SES | B62: 0 | C62: MJ/m2 | D62: Solar Panel | F62: =J33 -> 1.1 | G62: =K33 -> 0.203
A63: Seasonal Efficiency of Heat Source | B63: 0.91
A64: Primary Energy from Solar Panels | B64: =(B62/3.6/B63)*F62 -> 0 | C64: kWh/m2/yr
A65: Carbon Emissions from Solar Panels | B65: =(B62/3.6/B63)*G62 -> 0 | C65: kgCO2/m2/yr
A68: Biomass/ Biogas
B69: Based on Design Calculation | D69: Guidance Note:
A70: % of Delivered Heating provided by Biomass/ Biogas | B70: 0 | D70: Refer to Guidance Document for calculation of % | F70: Primary Energy Factor | G70: CO2 Emissions
A71: % of Delivered Hot Water provided by Biomass/ Biogas | B71: 0 | E71: Biomass/ Biogas | F71: =X9 -> 1.1 | G71: =Y9 -> 0.025
A72: Fuel of Other System | B72: Mains Gas | E72: =B72 -> Mains Gas | F72: =VLOOKUP(B72,$W$2:$Y$11,2,) -> 1.1 | G72: =VLOOKUP(B72,$W$2:$Y$11,3,) -> 0.203
A74: Primary Energy from Biomass | B74: =((B29*B70)+(B33*B71))*F71 -> 0 | C74: kWh/m2/yr | D74: Primary Energy Use from Htg & DHW | F74: =((B29*B70)+(B33*B71))*F71+(B29*(100%-B70)+(B33*(100%-B71)))*F72 -> 0 | G74: kWh/m2/yr
A75: Carbon Emissions from Biomass | B75: =((B29*B70)+(B33*B71))*G71 -> 0 | C75: kgCO2/m2/yr | D75: CO2 from Htg & DHW | F75: =((B29*B70)+(B33*B71))*G71+(B29*(100%-B70)+(B33*(100%-B71)))*G72 -> 0 | G75: kgCO2/m2/yr
A79: Combined Heat and Power
B80: Energy Contribution taken from XXX_sim file
A81: CHP_All | B81: 136.36 | C81: kWh/m2 | D81: Heating and Hot Water | F81: =B81*B83 -> 74.998 | G81: kWh/m2
A82: Electrical Efficiency of CHP | B82: 0.3 | D82: Electrical | F82: =B81*B82 -> 40.908 | G82: kWh/m2
A83: Thermal Efficiency of CHP | B83: 0.55
A84: CHP Fuel | B84: Mains Gas | F84: Primary Energy Factor | G84: CO2 Emissions | J84: =IF(B84="Biomass",0.75,0.86) -> 0.86 | K84: min boiler efficiency based on fuel
A85: Renewable Primary Energy from CHP | B85: =IF(B84="Biogas",F81*((F86/J84)+B82*F85/(B83)),F81*((F86/J84)+B82*F85/(B83)-(F86/B83))) -> 31.02031442 | C85: kWh/m2/yr | E85: Electricity | F85: =X2 -> 2.08 | G85: =Y2 -> 0.409
E86: =B84 -> Mains Gas | F86: =VLOOKUP(B84,$W$2:$Y$11,2,) -> 1.1 | G86: =VLOOKUP(B84,$W$2:$Y$11,3,) -> 0.203
A89: Heat Pump
B90: Based on Design Calculation | F90: Primary Energy Factor | G90: CO2 Emissions
A91: % of Heating provided by Heat Pump | B91: 0.5 | E91: Electricity | F91: =X2 -> 2.08 | G91: =Y2 -> 0.409
A92: Efficiency of Heat Pump for Heating | B92: 4.5 | E92: =B95 -> Mains Gas | F92: =VLOOKUP(E92,$W$2:$Y$11,2,) -> 1.1 | G92: =VLOOKUP(E92,$W$2:$Y$11,3,) -> 0.203
A93: % of Hot Water provided by Heat Pump | B93: 1 | D93: Bivalent Seasonal Efficiency for Heating | F93: =F91/((F91/B92*B91)+(F92/B96*(1-B91))) -> 2.489507219
A94: Efficiency of Heat Pump for Hot Water | B94: 2 | D94: Bivalent Seasonal Efficiency for Hot Water | F94: =F91/((F91/B94*B93)+(F92/B96*(1-B93))) -> 2
A95: Fuel of Other System | B95: Mains Gas | D95: Heating from Heat Pump | F95: =B29*F93*B91/B92 -> 0 | G95: kWh/m2
A96: Seasonal Efficiency of Heat Source | B96: 0.91 | D96: Hot Water from Heat Pump | F96: =B33*F94*B93/B94 -> 0 | G96: kWh/m2
A98: Renewable Primary Energy from Heat Pump | B98: =IF(AND(B91>0,B92>208%),(B92*(1.1/0.86)-208%)*F95,0)+IF(AND(B93>0,B94>208%),(B94*(1.1/0.86)-208%)*F96,0) -> 0 | C98: kWh/m2/yr
D101: Results from SBEM | F101: =F35 -> 0 | G101: =G35 -> 0
B102: Installed Renewable Energy | D102: Renewable Primary Energy | E102: Adjustment to Eptot | F102: Adjustment to Actual Primary Energy Use | G102: Adjustment to Actual CO2 Emissions
A103: Photovoltaic | B103: =B37 -> Yes | D103: =IF(B103="Yes",B49,0) -> 0 | E103: Accounted for in figures from SBEM | F103: =IF(B103="Yes",-B49,0) -> 0 | G103: =IF(B103="Yes",-B50,0) -> 0
A104: Wind Energy | B104: =B38 -> Yes | D104: =IF(B104="Yes",B57,0) -> 0 | E104: Accounted for in figures from SBEM | F104: =IF(B104="Yes",-B57,0) -> 0 | G104: =IF(B104="Yes",-B58,0) -> 0
A105: Solar Panel | B105: Yes | D105: =IF(B105="Yes",B64,0) -> 0 | E105: =IF(B105="Yes",B64,0) -> 0 | F105: Accounted for in figures from SBEM
A106: Biomass/ Biogas | B106: Yes | D106: =IF(B106="Yes",B74,0) -> 0 | E106: =IF(B106="Yes",(-F29-F33+F74),0) -> 0 | F106: =IF(B106="Yes",(-F29-F33+F74),0) -> 0 | G106: =IF(B106="Yes",(-G29-G33+F75),0) -> 0
A107: Combined Heat and Power | B107: Yes | D107: =IF(B107="Yes",B85,0) -> 31.02031442 | E107: =IF(B107="Yes",(B81*F86-F82*F85),0) -> 64.90736 | F107: =IF(B107="Yes",(B81*F86-F82*F85),0) -> 64.90736 | G107: =IF(B107="Yes",(B81*G86-F82*G85),0) -> 10.949708
A108: Heat Pump Technology | B108: Yes | D108: =IF(B108="Yes",B98,0) -> 0 | E108: Accounted for in figures from SBEM
D109: Guidance Note:
A110: Renewable Primary Energy Epren | B110: =SUM(D103:D108) -> 31.02031442 | C110: kWh/m2/yr | D110: Complete appropriate sections
A111: Total Primary Energy Eptot | B111: =F101+SUM(E103:E108) -> 64.90736 | C111: kWh/m2/yr
A112: Actual Building Primary Energy Use | B112: =SUM(F103:F108)+F101 -> 64.90736 | C112: kWh/m2/yr
A113: Actual Building Carbon Emissions | B113: =SUM(G103:G108)+G101 -> 10.949708 | C113: kgCO2/m2/yr
A116: 5. Results
A119: EPC | B119: =B112/B24 ->  | C119: =IF(B119>1,"Non Compliant","Compliant") -> 
A120: CPC | B120: =B113/B25 ->  | C120: =IF(B120>1.15,"Non Compliant","Compliant") -> 
A121: RER | B121: =B110/B111 -> 0.4779167481 | C121: =IF(B121<0.2,IF(AND(B121>=0.1,B120<=1.04,B119<=0.9),"Compliant","Non Compliant"),"Compliant") -> Compliant

Sheet Lighting
A1: Zone Name | B1: Wall Area of Zone | C1: Floor Area of Zone, m2 | D1: R | E1: Power Density | F1: Design Illuminance | G1: Total Wattage
B2: m2 | C2: m2 | E2: w/m2/100 lux | F2: lux | G2: Watts
A3: Z1/10 Office | B3: 351 | C3: 179.4 | D3: =IFERROR(B3/C3,0) -> 1.956521739 | E3: =((1.93+0.007*D3+0.063*D3^2)/0.8)*60/65 -> 2.520990257 | F3: 500 | G3: =E3*F3*C3/100 -> 2261.328261
D4: =IFERROR(B4/C4,0) -> 0 | E4: =((1.93+0.007*D4+0.063*D4^2)/0.8)*60/65 -> 2.226923077 | F4: 300 | G4: =E4*F4*C4/100 -> 0
D5: 0 | E5: 2.226923077 | F5: 300 | G5: 0
D6: 0 | E6: 2.226923077 | F6: 300 | G6: 0
D7: 0 | E7: 2.226923077 | F7: 300 | G7: 0
D8: 0 | E8: 2.226923077 | F8: 300 | G8: 0
D9: 0 | E9: 2.226923077 | F9: 300 | G9: 0
D10: 0 | E10: 2.226923077 | F10: 300 | G10: 0
D11: 0 | E11: 2.226923077 | F11: 300 | G11: 0
D12: 0 | E12: 2.226923077 | F12: 300 | G12: 0
D13: 0 | E13: 2.226923077 | F13: 300 | G13: 0
D14: 0 | E14: 2.226923077 | F14: 300 | G14: 0
D15: 0 | E15: 2.226923077 | F15: 300 | G15: 0
D16: 0 | E16: 2.226923077 | F16: 300 | G16: 0
D17: 0 | E17: 2.226923077 | F17: 300 | G17: 0
D18: 0 | E18: 2.226923077 | F18: 300 | G18: 0
D19: 0 | E19: 2.226923077 | F19: 300 | G19: 0
D20: 0 | E20: 2.226923077 | F20: 300 | G20: 0
D21: 0 | E21: 2.226923077 | F21: 300 | G21: 0
D22: 0 | E22: 2.226923077 | F22: 300 | G22: 0
D23: 0 | E23: 2.226923077 | F23: 300 | G23: 0
D24: 0 | E24: 2.226923077 | F24: 300 | G24: 0
D25: 0 | E25: 2.226923077 | F25: 300 | G25: 0
D26: 0 | E26: 2.226923077 | F26: 300 | G26: 0
D27: 0 | E27: 2.226923077 | F27: 300 | G27: 0
D28: 0 | E28: 2.226923077 | F28: 300 | G28: 0
D29: 0 | E29: 2.226923077 | F29: 300 | G29: 0
D30: 0 | E30: 2.226923077 | F30: 300 | G30: 0
D31: 0 | E31: 2.226923077 | F31: 300 | G31: 0
D32: 0 | E32: 2.226923077 | F32: 300 | G32: 0
D33: 0 | E33: 2.226923077 | F33: 300 | G33: 0
D34: 0 | E34: 2.226923077 | F34: 300 | G34: 0
D35: 0 | E35: 2.226923077 | F35: 300 | G35: 0
D36: 0 | E36: 2.226923077 | F36: 300 | G36: 0
D37: 0 | E37: 2.226923077 | F37: 300 | G37: 0
D38: 0 | E38: 2.226923077 | F38: 300 | G38: 0
D39: 0 | E39: 2.226923077 | F39: 300 | G39: 0
D40: 0 | E40: 2.226923077 | F40: 300 | G40: 0
D41: 0 | E41: 2.226923077 | F41: 300 | G41: 0
D42: 0 | E42: 2.226923077 | F42: 300 | G42: 0
D43: 0 | E43: 2.226923077 | F43: 300 | G43: 0
D44: 0 | E44: 2.226923077 | F44: 300 | G44: 0
D45: 0 | E45: 2.226923077 | F45: 300 | G45: 0
D46: 0 | E46: 2.226923077 | F46: 300 | G46: 0
D47: 0 | E47: 2.226923077 | F47: 300 | G47: 0
D48: 0 | E48: 2.226923077 | F48: 300 | G48: 0
D49: 0 | E49: 2.226923077 | F49: 300 | G49: 0
D50: 0 | E50: 2.226923077 | F50: 300 | G50: 0
C51: 0 | D51: =IFERROR(B51/C51,0) -> 0 | E51: =((1.93+0.007*D51+0.063*D51^2)/0.8)*60/65 -> 2.226923077 | F51: 500 | G51: =E51*F51*C51/100 -> 0
D52: =IFERROR(B52/C52,0) -> 0 | E52: =((1.93+0.007*D52+0.063*D52^2)/0.8)*60/65 -> 2.226923077 | F52: 300 | G52: =E52*F52*C52/100 -> 0
D53: 0 | E53: 2.226923077 | F53: 300 | G53: 0
D54: 0 | E54: 2.226923077 | F54: 300 | G54: 0
D55: 0 | E55: 2.226923077 | F55: 300 | G55: 0
D56: 0 | E56: 2.226923077 | F56: 300 | G56: 0
D57: 0 | E57: 2.226923077 | F57: 300 | G57: 0
D58: 0 | E58: 2.226923077 | F58: 300 | G58: 0
D59: 0 | E59: 2.226923077 | F59: 300 | G59: 0
D60: 0 | E60: 2.226923077 | F60: 300 | G60: 0
D61: 0 | E61: 2.226923077 | F61: 300 | G61: 0
D62: 0 | E62: 2.226923077 | F62: 300 | G62: 0
D63: 0 | E63: 2.226923077 | F63: 300 | G63: 0
D64: 0 | E64: 2.226923077 | F64: 300 | G64: 0
D65: 0 | E65: 2.226923077 | F65: 300 | G65: 0
D66: 0 | E66: 2.226923077 | F66: 300 | G66: 0
D67: 0 | E67: 2.226923077 | F67: 300 | G67: 0
D68: 0 | E68: 2.226923077 | F68: 300 | G68: 0
D69: 0 | E69: 2.226923077 | F69: 300 | G69: 0
D70: 0 | E70: 2.226923077 | F70: 300 | G70: 0
D71: 0 | E71: 2.226923077 | F71: 300 | G71: 0
D72: 0 | E72: 2.226923077 | F72: 300 | G72: 0
D73: 0 | E73: 2.226923077 | F73: 300 | G73: 0
D74: 0 | E74: 2.226923077 | F74: 300 | G74: 0
D75: 0 | E75: 2.226923077 | F75: 300 | G75: 0
D76: 0 | E76: 2.226923077 | F76: 300 | G76: 0
D77: 0 | E77: 2.226923077 | F77: 300 | G77: 0
D78: 0 | E78: 2.226923077 | F78: 300 | G78: 0
D79: 0 | E79: 2.226923077 | F79: 300 | G79: 0
D80: 0 | E80: 2.226923077 | F80: 300 | G80: 0
D81: 0 | E81: 2.226923077 | F81: 300 | G81: 0
D82: 0 | E82: 2.226923077 | F82: 300 | G82: 0
D83: 0 | E83: 2.226923077 | F83: 300 | G83: 0
D84: 0 | E84: 2.226923077 | F84: 300 | G84: 0
D85: 0 | E85: 2.226923077 | F85: 300 | G85: 0
D86: 0 | E86: 2.226923077 | F86: 300 | G86: 0
D87: 0 | E87: 2.226923077 | F87: 300 | G87: 0
D88: 0 | E88: 2.226923077 | F88: 300 | G88: 0
D89: 0 | E89: 2.226923077 | F89: 300 | G89: 0
D90: 0 | E90: 2.226923077 | F90: 300 | G90: 0
D91: 0 | E91: 2.226923077 | F91: 300 | G91: 0
D92: 0 | E92: 2.226923077 | F92: 300 | G92: 0
D93: 0 | E93: 2.226923077 | F93: 300 | G93: 0
D94: 0 | E94: 2.226923077 | F94: 300 | G94: 0
D95: 0 | E95: 2.226923077 | F95: 300 | G95: 0
D96: 0 | E96: 2.226923077 | F96: 300 | G96: 0
D97: 0 | E97: 2.226923077 | F97: 300 | G97: 0
D98: 0 | E98: 2.226923077 | F98: 300 | G98: 0
